{"text_format":"1","workbook":"xlsx","n_sheets":5,"sheets":["name","data","Book","الغلاف الداخلي","الغلاف الازرق"],"not_rendered":{"charts":0,"images":4,"macros":1,"external_links":1,"defined_names":5,"comments":0,"pivot_tables":0},"unopened":[],"bounds":{"document_bytes":16777216,"sheet_cells":100000,"rows_first":2000,"rows_last":500,"rows_between":2000,"halvings":0,"cell_chars":16384,"cell_head_chars":4096},"cells_cut":0,"cells_raw":0,"read":"whole","date_system":"1900"}

{"sheet":"name","index":0,"n_rows":67,"n_cols":49,"rows_kept":67,"cut":false,"hidden":false,"merged":[[0,0,0,7],[0,8,0,15],[0,16,0,27],[0,28,0,33],[0,34,0,47],[1,0,3,0],[1,2,3,2],[1,4,3,4],[1,6,3,6],[1,8,3,8],[1,10,3,10],[1,12,3,12],[1,14,3,14],[1,16,3,16],[1,18,3,18],[1,20,3,20],[1,22,3,22],[1,24,3,24],[1,26,3,26],[1,28,3,28],[1,30,3,30],[1,32,3,32],[1,46,3,46],[1,34,3,34],[1,36,3,36],[1,38,3,38],[1,40,3,40],[1,42,3,42],[1,44,3,44]]}
["الصف العاشر الأساسي",null,null,null,null,null,null,null,"الحادي عشر العلمي",null,null,null,null,null,null,null,"الحادي عشر الادبي ",null,null,null,null,null,null,null,null,null,null,null,"الثاني عشر العلمي",null,null,null,null,null,"الثاني عشر الادبي "]
["الرقم","أ","الرقم","ب","الرقم","ج","الرقم","د","الرقم","ا","الرقم","ب","الرقم","ج","الرقم","د","الرقم","أ","الرقم","ب","الرقم","ج","الرقم","د","الرقم","هـ","الرقم","و","الرقم","ا","الرقم","ب","الرقم","ج","الرقم","أ","الرقم","ب","الرقم","ج","الرقم","د ","الرقم","هـ","الرقم","و ","الرقم","ز"]
[null,"عدد طلاب الشعبة ",null,"عدد طلاب الشعبة ",null,"عدد طلاب الشعبة ",null,"عدد طلاب الشعبة ",null,"عدد طلاب الشعبة ",null,"عدد طلاب الشعبة ",null,"عدد طلاب الشعبة ",null,"عدد طلاب الشعبة ",null,"عدد طلاب الشعبة ",null,"عدد طلاب الشعبة ",null,"عدد طلاب الشعبة ",null,"عدد طلاب الشعبة ",null,"عدد طلاب الشعبة ",null,"عدد طلاب الشعبة ",null,"عدد طلاب الشعبة ",null,"عدد طلاب الشعبة ",null,"عدد طلاب الشعبة ",null,"عدد طلاب الشعبة ",null,"عدد طلاب الشعبة ",null,"عدد طلاب الشعبة ",null,"عدد طلاب الشعبة ",null,"عدد طلاب الشعبة ",null,"عدد طلاب الشعبة ",null,"عدد طلاب الشعبة "]
[null,{"$f":"COUNTA(B5:B69)","v":63},null,{"$f":"COUNTA(D5:D69)","v":45},null,{"$f":"COUNTA(F5:F69)","v":56},null,{"$f":"COUNTA(H5:H69)","v":23},null,{"$f":"COUNTA(J5:J219)","v":32},null,{"$f":"COUNTA(L5:L69)","v":51},null,{"$f":"COUNTA(N5:N69)","v":0},null,{"$f":"COUNTA(P5:P219)","v":0},null,{"$f":"COUNTA(R5:R219)","v":0},null,{"$f":"COUNTA(T5:T69)","v":0},null,{"$f":"COUNTA(V5:V100)","v":0},null,{"$f":"COUNTA(X5:X69)","v":0},null,{"$f":"COUNTA(Z5:Z69)","v":0},null,{"$f":"COUNTA(AB5:AB69)","v":0},null,{"$f":"COUNTA(AD5:AD69)","v":0},null,{"$f":"COUNTA(AF5:AF69)","v":0},null,{"$f":"COUNTA(AH5:AH69)","v":0},null,{"$f":"COUNTA(AJ5:AJ69)","v":0},null,{"$f":"COUNTA(AL5:AL69)","v":0},null,{"$f":"COUNTA(AN5:AN69)","v":0},null,{"$f":"COUNTA(AP5:AP69)","v":0},null,{"$f":"COUNTA(AR5:AR69)","v":0},null,{"$f":"COUNTA(AT5:AT69)","v":0},null,{"$f":"COUNTA(AV5:AV69)","v":0},{"$f":"SUM(A4:AV4)","v":270}]
[null,"محمد 1",null,"احمد 1",null,"خالد 1",null,"سيد 1",null,"سالم1",null,"صابر 1"]
[null,"محمد 2",null,"احمد 2",null,"خالد 2",null,"سيد 2",null,"سالم2",null,"صابر 2"]
[null,"محمد 3",null,"احمد 3",null,"خالد 3",null,"سيد 3",null,"سالم3",null,"صابر 3"]
[null,"محمد 4",null,"احمد 4",null,"خالد 4",null,"سيد 4",null,"سالم4",null,"صابر 4"]
[null,"محمد 5",null,"احمد 5",null,"خالد 5",null,"سيد 5",null,"سالم5",null,"صابر 5"]
[null,"محمد 6",null,"احمد 6",null,"خالد 6",null,"سيد 6",null,"سالم6",null,"صابر 6"]
[null,"محمد 7",null,"احمد 7",null,"خالد 7",null,"سيد 7",null,"سالم7",null,"صابر 7"]
[null,"محمد 8",null,"احمد 8",null,"خالد 8",null,"سيد 8",null,"سالم8",null,"صابر 8"]
[null,"محمد 9",null,"احمد 9",null,"خالد 9",null,"سيد 9",null,"سالم9",null,"صابر 9"]
[null,"محمد 10",null,"احمد 10",null,"خالد 10",null,"سيد 10",null,"سالم10",null,"صابر 10"]
[null,"محمد 11",null,"احمد 11",null,"خالد 11",null,"سيد 11",null,"سالم11",null,"صابر 11"]
[null,"محمد 12",null,"احمد 12",null,"خالد 12",null,"سيد 12",null,"سالم12",null,"صابر 12"]
[null,"محمد 13",null,"احمد 13",null,"خالد 13",null,"سيد 13",null,"سالم13",null,"صابر 13"]
[null,"محمد 14",null,"احمد 14",null,"خالد 14",null,"سيد 14",null,"سالم14",null,"صابر 14"]
[null,"محمد 15",null,"احمد 15",null,"خالد 15",null,"سيد 15",null,"سالم15",null,"صابر 15"]
[null,"محمد 16",null,"احمد 16",null,"خالد 16",null,"سيد 16",null,"سالم16",null,"صابر 16"]
[null,"محمد 17",null,"احمد 17",null,"خالد 17",null,"سيد 17",null,"سالم17",null,"صابر 17"]
[null,"محمد 18",null,"احمد 18",null,"خالد 18",null,"سيد 18",null,"سالم18",null,"صابر 18"]
[null,"محمد 19",null,"احمد 19",null,"خالد 19",null,"سيد 19",null,"سالم19",null,"صابر 19"]
[null,"محمد 20",null,"احمد 20",null,"خالد 20",null,"سيد 20",null,"سالم20",null,"صابر 20"]
[null,"محمد 21",null,"احمد 21",null,"خالد 21",null,"سيد 21",null,"سالم21",null,"صابر 21"]
[null,"محمد 22",null,"احمد 22",null,"خالد 22",null,"سيد 22",null,"سالم22",null,"صابر 22"]
[null,"محمد 23",null,"احمد 23",null,"خالد 23",null,"سيد 23",null,"سالم23",null,"صابر 23"]
[null,"محمد 24",null,"احمد 24",null,"خالد 24",null,null,null,"سالم24",null,"صابر 24"]
[null,"محمد 25",null,"احمد 25",null,"خالد 25",null,null,null,"سالم25",null,"صابر 25"]
[null,"محمد 26",null,"احمد 26",null,"خالد 26",null,null,null,"سالم26",null,"صابر 26"]
[null,"محمد 27",null,"احمد 27",null,"خالد 27",null,null,null,"سالم27",null,"صابر 27"]
[null,"محمد 28",null,"احمد 28",null,"خالد 28",null,null,null,"سالم28",null,"صابر 28"]
[null,"محمد 29",null,"احمد 29",null,"خالد 29",null,null,null,"سالم29",null,"صابر 29"]
[null,"محمد 30",null,"احمد 30",null,"خالد 30",null,null,null,"سالم30",null,"صابر 30"]
[null,"محمد 31",null,"احمد 31",null,"خالد 31",null,null,null,"سالم31",null,"صابر 31"]
[null,"محمد 32",null,"احمد 32",null,"خالد 32",null,null,null,"سالم32",null,"صابر 32"]
[null,"محمد 33",null,"احمد 33",null,"خالد 33",null,null,null,null,null,"صابر 33"]
[null,"محمد 34",null,"احمد 34",null,"خالد 34",null,null,null,null,null,"صابر 34"]
[null,"محمد 35",null,"احمد 35",null,"خالد 35",null,null,null,null,null,"صابر 35"]
[null,"محمد 36",null,"احمد 36",null,"خالد 36",null,null,null,null,null,"صابر 36"]
[null,"محمد 37",null,"احمد 37",null,"خالد 37",null,null,null,null,null,"صابر 37"]
[null,"محمد 38",null,"احمد 38",null,"خالد 38",null,null,null,null,null,"صابر 38"]
[null,"محمد 39",null,"احمد 39",null,"خالد 39",null,null,null,null,null,"صابر 39"]
[null,"محمد 40",null,"احمد 40",null,"خالد 40",null,null,null,null,null,"صابر 40"]
[null,"محمد 41",null,"احمد 41",null,"خالد 41",null,null,null,null,null,"صابر 41"]
[null,"محمد 42",null,"احمد 42",null,"خالد 42",null,null,null,null,null,"صابر 42"]
[null,"محمد 43",null,"احمد 43",null,"خالد 43",null,null,null,null,null,"صابر 43"]
[null,"محمد 44",null,"احمد 44",null,"خالد 44",null,null,null,null,null,"صابر 44"]
[null,"محمد 45",null,"احمد 45",null,"خالد 45",null,null,null,null,null,"صابر 45"]
[null,"محمد 46",null,null,null,"خالد 46",null,null,null,null,null,"صابر 46"]
[null,"محمد 47",null,null,null,"خالد 47",null,null,null,null,null,"صابر 47"]
[null,"محمد 48",null,null,null,"خالد 48",null,null,null,null,null,"صابر 48"]
[null,"محمد 49",null,null,null,"خالد 49",null,null,null,null,null,"صابر 49"]
[null,"محمد 50",null,null,null,"خالد 50",null,null,null,null,null,"صابر 50"]
[null,"محمد 51",null,null,null,"خالد 51",null,null,null,null,null,"صابر 51"]
[null,"محمد 52",null,null,null,"خالد 52"]
[null,"محمد 53",null,null,null,"خالد 53"]
[null,"محمد 54",null,null,null,"خالد 54"]
[null,"محمد 55",null,null,null,"خالد 55"]
[null,"محمد 56",null,null,null,"خالد 56"]
[null,"محمد 57"]
[null,"محمد 58"]
[null,"محمد 59"]
[null,"محمد 60"]
[null,"محمد 61"]
[null,"محمد 62"]
[null,"محمد 63"]

{"sheet":"data","index":1,"n_rows":98,"n_cols":14,"rows_kept":98,"cut":false,"hidden":false,"merged":[]}
["اسم الطالب","محمد"]
[1,"محمد 1",null,"احمد 1",null,"خالد 1",null,"سيد 1",null,"سالم1",null,"صابر 1"]
[2,"محمد 2",null,"احمد 2",null,"خالد 2",3,"سيد 2",null,"سالم2",null,"صابر 2"]
[3,"محمد 3",null,"احمد 3",null,"خالد 3",null,"سيد 3",null,"سالم3",null,"صابر 3"]
[4,"محمد 4",null,"احمد 4",null,"خالد 4",null,"سيد 4",null,"سالم4",null,"صابر 4"]
[5,"محمد 5",null,"احمد 5",null,"خالد 5",null,"سيد 5",null,"سالم5",null,"صابر 5",null,"العاشر أ"]
[6,"محمد 6",null,"احمد 6",null,"خالد 6",null,"سيد 6",null,"سالم6",null,"صابر 6",null,"العاشر ب"]
[7,"محمد 7",null,"احمد 7",null,"خالد 7",null,"سيد 7",null,"سالم7",null,"صابر 7",null,"العاشر ج"]
[8,"محمد 8",null,"احمد 8",null,"خالد 8",null,"سيد 8",null,"سالم8",null,"صابر 8",null,"العاشر د"]
[9,"محمد 9",null,"احمد 9",null,"خالد 9",null,"سيد 9",null,"سالم9",null,"صابر 9",null,"الحادي عشر العلمي أ"]
[10,"محمد 10",null,"احمد 10",null,"خالد 10",null,"سيد 10",null,"سالم10",null,"صابر 10"]
[]
[]
[null,null,null,null,null,null,null,null,null,null,null,null,null,"الثاني عشر العلمي ج"]
[]
[]
[]
[]
[]
[]
[]
[]
[]
[]
[]
[]
[]
[]
[]
[]
[]
[]
[]
[]
[]
[]
[]
[]
[]
[]
[]
[]
[]
[]
[]
[]
[]
[]
[]
[]
[]
[]
[]
[]
[]
[]
[]
[]
[]
[]
[]
[]
[]
[]
[]
[]
[]
[]
[]
[]
[]
[]
[]
[]
[]
[]
[]
[]
[]
[]
[]
[]
[]
[]
[]
[]
[]
[]
[]
[]
[]
[]
[]
[]
[]
[]
[]
["@"]

{"sheet":"Book","index":2,"n_rows":41,"n_cols":6,"rows_kept":41,"cut":false,"hidden":false,"merged":[]}
[]
[]
[]
[null,"اسم الطالب","محمد"]
[null,1,"محمد 1","خالد 1",null,"سيد 1"]
[null,2,"محمد 2","خالد 2",3,"سيد 2"]
[null,3,"محمد 3","خالد 3",null,"سيد 3"]
[null,4,"محمد 4","خالد 4",null,"سيد 4"]
[null,5,"محمد 5","خالد 5",null,"سيد 5"]
[null,6,"محمد 6","خالد 6",null,"سيد 6"]
[null,7,"محمد 7","خالد 7",null,"سيد 7"]
[null,8,"محمد 8","خالد 8",null,"سيد 8"]
[null,9,"محمد 9","خالد 9",null,"سيد 9"]
[null,10,"محمد 10","خالد 10",null,"سيد 10"]
[null,"@"]
[]
[null,"اسم الطالب","محمد"]
[null,1,"محمد 1","خالد 1",null,"سيد 1"]
[null,2,"محمد 2","خالد 2",3,"سيد 2"]
[null,3,"محمد 3","خالد 3",null,"سيد 3"]
[null,4,"محمد 4","خالد 4",null,"سيد 4"]
[null,5,"محمد 5","خالد 5",null,"سيد 5"]
[null,6,"محمد 6","خالد 6",null,"سيد 6"]
[null,7,"محمد 7","خالد 7",null,"سيد 7"]
[null,8,"محمد 8","خالد 8",null,"سيد 8"]
[null,9,"محمد 9","خالد 9",null,"سيد 9"]
[null,10,"محمد 10","خالد 10",null,"سيد 10"]
[null,"@"]
[]
[null,"اسم الطالب","محمد"]
[null,1,"محمد 1","خالد 1",null,"سيد 1"]
[null,2,"محمد 2","خالد 2",3,"سيد 2"]
[null,3,"محمد 3","خالد 3",null,"سيد 3"]
[null,4,"محمد 4","خالد 4",null,"سيد 4"]
[null,5,"محمد 5","خالد 5",null,"سيد 5"]
[null,6,"محمد 6","خالد 6",null,"سيد 6"]
[null,7,"محمد 7","خالد 7",null,"سيد 7"]
[null,8,"محمد 8","خالد 8",null,"سيد 8"]
[null,9,"محمد 9","خالد 9",null,"سيد 9"]
[null,10,"محمد 10","خالد 10",null,"سيد 10"]
[null,"@"]

{"sheet":"الغلاف الداخلي","index":3,"n_rows":61,"n_cols":19,"rows_kept":61,"cut":false,"hidden":true,"merged":[[31,11,31,12],[31,13,31,17],[33,18,34,19],[35,18,35,19],[36,18,36,19],[37,18,37,19],[38,18,38,19],[39,18,39,19],[40,18,40,19],[41,18,41,19],[42,18,42,19],[43,18,43,19],[55,18,55,19],[44,18,44,19],[45,18,45,19],[46,18,46,19],[47,18,47,19],[48,18,48,19],[49,18,49,19],[50,18,50,19],[51,18,51,19],[52,18,52,19],[53,18,53,19],[54,18,54,19],[56,18,56,19],[57,18,57,19],[58,18,58,19],[59,18,59,19],[60,18,60,19]]}
[]
[]
[]
[]
[]
[]
[]
[]
[]
[]
[]
[]
[]
[]
[]
[]
[]
[]
[]
[]
[]
[]
[]
[]
[]
[]
[]
[]
[]
[]
[]
[null,null,null,null,null,null,null,null,null,null,null,"   المادة الدراسية  "]
[]
[null,null,null,null,null,null,null,null,null,null,null,"و","ز","حـ","ط","ي","النتيجة السنوية",null,"ملحوظــــــــات"]
[null,null,null,null,null,null,null,null,null,null,null,"التقـــــــــويم الاول","التقـــــــــويم الثاني","التقـــــــــويم الثالث","التــــــــقويم الرابع","المــــجمـــــوع",null,"علامة اختبار الإكمال"]
[null,null,null,null,null,null,null,null,null,null,null,0.2,0.2,0.2,0.2,1,1]
[null,null,null,null,null,null,null,null,null,null,null,null,null,null,null,{"$f":"IF(COUNT(L37:O37)>3,SUM(L37:O37),\"\")","v":""},{"$f":"IF(COUNT(#REF!,P37)>=2,ROUND((#REF!+P37)/2,0),\"\")","v":""}]
[null,null,null,null,null,null,null,null,null,null,null,null,null,null,null,{"$f":"IF(COUNT(L38:O38)>3,SUM(L38:O38),\"\")","v":""},{"$f":"IF(COUNT(#REF!,P38)>=2,ROUND((#REF!+P38)/2,0),\"\")","v":""}]
[null,null,null,null,null,null,null,null,null,null,null,null,null,null,null,"",{"$f":"IF(COUNT(#REF!,P39)>=2,ROUND((#REF!+P39)/2,0),\"\")","v":""}]
[null,null,null,null,null,null,null,null,null,null,null,null,null,null,null,"",{"$f":"IF(COUNT(#REF!,P40)>=2,ROUND((#REF!+P40)/2,0),\"\")","v":""}]
[null,null,null,null,null,null,null,null,null,null,null,null,null,null,null,"",{"$f":"IF(COUNT(#REF!,P41)>=2,ROUND((#REF!+P41)/2,0),\"\")","v":""}]
[null,null,null,null,null,null,null,null,null,null,null,null,null,null,null,"",{"$f":"IF(COUNT(#REF!,P42)>=2,ROUND((#REF!+P42)/2,0),\"\")","v":""}]
[null,null,null,null,null,null,null,null,null,null,null,null,null,null,null,"",{"$f":"IF(COUNT(#REF!,P43)>=2,ROUND((#REF!+P43)/2,0),\"\")","v":""}]
[null,null,null,null,null,null,null,null,null,null,null,null,null,null,null,"",{"$f":"IF(COUNT(#REF!,P44)>=2,ROUND((#REF!+P44)/2,0),\"\")","v":""}]
[null,null,null,null,null,null,null,null,null,null,null,null,null,null,null,"",{"$f":"IF(COUNT(#REF!,P45)>=2,ROUND((#REF!+P45)/2,0),\"\")","v":""}]
[null,null,null,null,null,null,null,null,null,null,null,null,null,null,null,"",{"$f":"IF(COUNT(#REF!,P46)>=2,ROUND((#REF!+P46)/2,0),\"\")","v":""}]
[null,null,null,null,null,null,null,null,null,null,null,null,null,null,null,"",{"$f":"IF(COUNT(#REF!,P47)>=2,ROUND((#REF!+P47)/2,0),\"\")","v":""}]
[null,null,null,null,null,null,null,null,null,null,null,null,null,null,null,"",{"$f":"IF(COUNT(#REF!,P48)>=2,ROUND((#REF!+P48)/2,0),\"\")","v":""}]
[null,null,null,null,null,null,null,null,null,null,null,null,null,null,null,"",{"$f":"IF(COUNT(#REF!,P49)>=2,ROUND((#REF!+P49)/2,0),\"\")","v":""}]
[null,null,null,null,null,null,null,null,null,null,null,null,null,null,null,"",{"$f":"IF(COUNT(#REF!,P50)>=2,ROUND((#REF!+P50)/2,0),\"\")","v":""}]
[null,null,null,null,null,null,null,null,null,null,null,null,null,null,null,"",{"$f":"IF(COUNT(#REF!,P51)>=2,ROUND((#REF!+P51)/2,0),\"\")","v":""}]
[null,null,null,null,null,null,null,null,null,null,null,null,null,null,null,"",{"$f":"IF(COUNT(#REF!,P52)>=2,ROUND((#REF!+P52)/2,0),\"\")","v":""}]
[null,null,null,null,null,null,null,null,null,null,null,null,null,null,null,"",{"$f":"IF(COUNT(#REF!,P53)>=2,ROUND((#REF!+P53)/2,0),\"\")","v":""}]
[null,null,null,null,null,null,null,null,null,null,null,null,null,null,null,"",{"$f":"IF(COUNT(#REF!,P54)>=2,ROUND((#REF!+P54)/2,0),\"\")","v":""}]
[null,null,null,null,null,null,null,null,null,null,null,null,null,null,null,"",{"$f":"IF(COUNT(#REF!,P55)>=2,ROUND((#REF!+P55)/2,0),\"\")","v":""}]
[null,null,null,null,null,null,null,null,null,null,null,null,null,null,null,"",{"$f":"IF(COUNT(#REF!,P56)>=2,ROUND((#REF!+P56)/2,0),\"\")","v":""}]
[null,null,null,null,null,null,null,null,null,null,null,null,null,null,null,"",{"$f":"IF(COUNT(#REF!,P57)>=2,ROUND((#REF!+P57)/2,0),\"\")","v":""}]
[null,null,null,null,null,null,null,null,null,null,null,null,null,null,null,"",{"$f":"IF(COUNT(#REF!,P58)>=2,ROUND((#REF!+P58)/2,0),\"\")","v":""}]
[null,null,null,null,null,null,null,null,null,null,null,null,null,null,null,"",{"$f":"IF(COUNT(#REF!,P59)>=2,ROUND((#REF!+P59)/2,0),\"\")","v":""}]
[null,null,null,null,null,null,null,null,null,null,null,null,null,null,null,"",{"$f":"IF(COUNT(#REF!,P60)>=2,ROUND((#REF!+P60)/2,0),\"\")","v":""}]
[null,null,null,null,null,null,null,null,null,null,null,null,null,null,null,"",{"$f":"IF(COUNT(#REF!,P61)>=2,ROUND((#REF!+P61)/2,0),\"\")","v":""}]

{"sheet":"الغلاف الازرق","index":4,"n_rows":0,"n_cols":0,"rows_kept":0,"cut":false,"hidden":true,"merged":[]}